[Event "Betsys MČR v online bleskovém šachu 2021"]
[Site "Chess.com"]
[Date "2021.04.17"]
[Round "9"]
[White "FBingoPlayer"]
[Black "Eliska0107"]
[Result "0-1"]
[WhiteElo "2174"]
[BlackElo "2052"]
[TimeControl "180+1"]
[EndTime "10:31:00 PDT"]
[Termination "Uživatel Eliska0107 zvítězil na čas"]

1. Nc3 {[%clk 0:03:00.9]} 1... d6 {[%clk 0:02:59.1]} 2. d4 {[%clk 0:02:59.6]}
2... g6 {[%clk 0:02:59.2]} 3. e4 {[%clk 0:02:59.7]} 3... Bg7 {[%clk 0:02:59.5]}
4. Bg5 {[%clk 0:02:59.5]} 4... Nf6 {[%clk 0:02:59.1]} 5. e5 {[%clk 0:02:59.5]}
5... Nfd7 {[%clk 0:02:56.3]} 6. f4 {[%clk 0:02:58.8]} 6... f6 {[%clk 0:02:55.7]}
7. Bh4 {[%clk 0:02:55.6]} 7... O-O {[%clk 0:02:55.1]} 8. Bc4+ {[%clk 0:02:49.1]}
8... Kh8 {[%clk 0:02:54.1]} 9. Nf3 {[%clk 0:02:41]} 9... Nc6 {[%clk 0:02:52.6]}
10. a3 {[%clk 0:02:15.3]} 10... Nb6 {[%clk 0:02:50.3]} 11. Ba2 {[%clk
0:02:14.8]} 11... Bg4 {[%clk 0:02:50.1]} 12. d5 {[%clk 0:01:56]} 12... Bxf3
{[%clk 0:02:42.9]} 13. gxf3 {[%clk 0:01:51]} 13... Nb8 {[%clk 0:02:29.2]} 14. e6
{[%clk 0:01:43.5]} 14... f5 {[%clk 0:02:28.6]} 15. Bf2 {[%clk 0:01:39.4]} 15...
c6 {[%clk 0:02:26.3]} 16. Bd4 {[%clk 0:01:35.4]} 16... Bf6 {[%clk 0:02:24.7]}
17. h4 {[%clk 0:01:34.7]} 17... cxd5 {[%clk 0:02:13.5]} 18. h5 {[%clk
0:01:33.8]} 18... Qe8 {[%clk 0:02:08.9]} 19. Nb5 {[%clk 0:01:16.7]} 19... Na6
{[%clk 0:02:05]} 20. Qd3 {[%clk 0:00:42.1]} 20... Bxd4 {[%clk 0:01:33.5]} 21.
Qxd4+ {[%clk 0:00:38.6]} 21... Rf6 {[%clk 0:01:32.9]} 22. hxg6 {[%clk
0:00:28.5]} 22... Qxg6 {[%clk 0:01:30]} 23. O-O-O {[%clk 0:00:26.7]} 23... Nc5
{[%clk 0:01:22.5]} 24. Rdg1 {[%clk 0:00:25]} 24... Qe8 {[%clk 0:01:20.3]} 25.
Nc7 {[%clk 0:00:24.6]} 25... Qc6 {[%clk 0:01:07.5]} 26. Nxa8 {[%clk 0:00:23.3]}
26... Nxa8 {[%clk 0:01:07.2]} 27. Bxd5 {[%clk 0:00:21]} 27... Qc8 {[%clk
0:00:58.8]} 28. Kb1 {[%clk 0:00:19.3]} 28... Nb6 {[%clk 0:00:52.2]} 29. Ba2
{[%clk 0:00:17.8]} 29... Nxe6 {[%clk 0:00:48.5]} 30. Qf2 {[%clk 0:00:15.5]}
30... d5 {[%clk 0:00:36.8]} 31. Qh4 {[%clk 0:00:12.3]} 31... Rf7 {[%clk
0:00:33.6]} 32. Qh5 {[%clk 0:00:09.7]} 32... Qf8 {[%clk 0:00:32.3]} 33. Rg2
{[%clk 0:00:08.4]} 33... Ng7 {[%clk 0:00:29.5]} 34. Qg5 {[%clk 0:00:08.2]} 34...
e6 {[%clk 0:00:25.7]} 35. Qg6 {[%clk 0:00:05.3]} 35... Qg8 {[%clk 0:00:19.5]}
36. Qh6 {[%clk 0:00:02.9]} 36... Nd7 {[%clk 0:00:17.5]} 37. Rhg1 {[%clk
0:00:03.3]} 37... Qf8 {[%clk 0:00:14.5]} 38. Ka1 {[%clk 0:00:02.9]} 38... Nc5
{[%clk 0:00:12.1]} 39. Bb1 {[%clk 0:00:01.9]} 39... Kg8 {[%clk 0:00:11.3]} 40.
b4 {[%clk 0:00:02]} 40... Nd7 {[%clk 0:00:10.3]} 41. Rh1 {[%clk 0:00:02.3]}
41... Nf6 {[%clk 0:00:10.5]} 42. Qg5 {[%clk 0:00:01.4]} 42... Qe7 {[%clk
0:00:10.4]} 0-1

[Event "Betsys MČR v online bleskovém šachu 2021"]
[Site "Chess.com"]
[Date "2021.04.17"]
[Round "9"]
[White "elftom"]
[Black "TommyLud"]
[Result "0-1"]
[WhiteElo "1967"]
[BlackElo "2169"]
[TimeControl "180+1"]
[EndTime "10:31:00 PDT"]
[Termination "Uživatel TommyLud zvítězil na čas"]

1. c4 {[%clk 0:02:59.6]} 1... e6 {[%clk 0:02:59.5]} 2. e4 {[%clk 0:02:58.3]}
2... d5 {[%clk 0:02:58.9]} 3. cxd5 {[%clk 0:02:57.8]} 3... exd5 {[%clk
0:02:59.8]} 4. exd5 {[%clk 0:02:57.5]} 4... Nf6 {[%clk 0:02:58.8]} 5. Bb5+
{[%clk 0:02:55.8]} 5... Bd7 {[%clk 0:02:58.4]} 6. Bc4 {[%clk 0:02:54.8]} 6...
Be7 {[%clk 0:02:46.7]} 7. Nc3 {[%clk 0:02:51.7]} 7... O-O {[%clk 0:02:46.4]} 8.
Nge2 {[%clk 0:02:51.3]} 8... Bg4 {[%clk 0:02:40.8]} 9. h3 {[%clk 0:02:50.3]}
9... Bh5 {[%clk 0:02:39.3]} 10. O-O {[%clk 0:02:49.8]} 10... Nbd7 {[%clk
0:02:38.5]} 11. d4 {[%clk 0:02:49.2]} 11... Nb6 {[%clk 0:02:38.3]} 12. Bb3
{[%clk 0:02:47.9]} 12... Nbxd5 {[%clk 0:02:38]} 13. Nxd5 {[%clk 0:02:47.4]}
13... Nxd5 {[%clk 0:02:37.8]} 14. a3 {[%clk 0:02:35.8]} 14... c6 {[%clk
0:02:36.9]} 15. Qd3 {[%clk 0:02:35.1]} 15... Bg6 {[%clk 0:02:35.6]} 16. Qf3
{[%clk 0:02:14.9]} 16... Bf6 {[%clk 0:02:22.3]} 17. Rd1 {[%clk 0:01:58.9]} 17...
Re8 {[%clk 0:02:18.6]} 18. Bxd5 {[%clk 0:01:55.1]} 18... cxd5 {[%clk 0:02:17.9]}
19. Nf4 {[%clk 0:01:54.7]} 19... Be4 {[%clk 0:02:17.2]} 20. Qg3 {[%clk
0:01:52.2]} 20... Qb6 {[%clk 0:02:12.2]} 21. b4 {[%clk 0:01:48.1]} 21... Bxd4
{[%clk 0:02:08.4]} 22. Rb1 {[%clk 0:01:47]} 22... Rad8 {[%clk 0:02:04.9]} 23.
Rxd4 {[%clk 0:01:37.5]} 23... Bxb1 {[%clk 0:02:04.2]} 24. Bb2 {[%clk 0:01:30.9]}
24... Bg6 {[%clk 0:02:01.8]} 25. Nxd5 {[%clk 0:01:25.9]} 25... Qe6 {[%clk
0:01:37.2]} 26. Nc7 {[%clk 0:00:43.4]} 26... Qe1+ {[%clk 0:01:36.1]} 27. Kh2
{[%clk 0:00:42.8]} 27... Rxd4 {[%clk 0:01:27.4]} 28. Nxe8 {[%clk 0:00:42.1]}
28... Rd1 {[%clk 0:01:26.9]} 29. Qb8 {[%clk 0:00:37.8]} 29... Qg1+ {[%clk
0:01:13.5]} 30. Kg3 {[%clk 0:00:37.1]} 30... Rd3+ {[%clk 0:01:13.5]} 31. f3
{[%clk 0:00:26.8]} 31... Qe1+ {[%clk 0:01:04.7]} 32. Kh2 {[%clk 0:00:26.7]}
32... f6 {[%clk 0:00:40.1]} 33. Nd6+ {[%clk 0:00:22.3]} 33... Be8 {[%clk
0:00:36.1]} 34. Nxe8 {[%clk 0:00:20.6]} 34... Kf7 {[%clk 0:00:35.2]} 35. Nc7
{[%clk 0:00:14.1]} 35... Qe2 {[%clk 0:00:18.3]} 36. Qxb7 {[%clk 0:00:11.9]}
36... Kg6 {[%clk 0:00:17]} 37. Bc1 {[%clk 0:00:09]} 37... Rd1 {[%clk 0:00:10.1]}
38. Bf4 {[%clk 0:00:06.5]} 38... Qc4 {[%clk 0:00:07.9]} 39. Qc8 {[%clk
0:00:05.1]} 39... Qxf4+ {[%clk 0:00:07.3]} 0-1

[Event "Betsys MČR v online bleskovém šachu 2021"]
[Site "Chess.com"]
[Date "2021.04.17"]
[Round "9"]
[White "jhdghaka"]
[Black "Drak1961"]
[Result "1-0"]
[WhiteElo "1890"]
[BlackElo "2057"]
[TimeControl "180+1"]
[EndTime "10:31:01 PDT"]
[Termination "Uživatel jhdghaka zvítězil na čas"]

1. e4 {[%clk 0:03:00.9]} 1... c5 {[%clk 0:02:58.6]} 2. Nf3 {[%clk 0:03:00.8]}
2... Nc6 {[%clk 0:02:57.8]} 3. Bb5 {[%clk 0:03:00.4]} 3... g6 {[%clk 0:02:56.3]}
4. O-O {[%clk 0:02:51.7]} 4... Bg7 {[%clk 0:02:55.2]} 5. Re1 {[%clk 0:02:52.6]}
5... e6 {[%clk 0:02:50.4]} 6. c3 {[%clk 0:02:51.4]} 6... Nge7 {[%clk 0:02:48.9]}
7. d4 {[%clk 0:02:50.9]} 7... cxd4 {[%clk 0:02:45.3]} 8. cxd4 {[%clk 0:02:50.3]}
8... O-O {[%clk 0:02:44.8]} 9. Nc3 {[%clk 0:02:47.2]} 9... a6 {[%clk 0:02:41.9]}
10. Bf1 {[%clk 0:02:46.6]} 10... d6 {[%clk 0:02:40.9]} 11. g3 {[%clk 0:02:45.2]}
11... Bd7 {[%clk 0:02:38.6]} 12. Bg2 {[%clk 0:02:45.5]} 12... Rc8 {[%clk
0:02:33.6]} 13. Be3 {[%clk 0:02:43.4]} 13... b5 {[%clk 0:02:32.6]} 14. Rc1
{[%clk 0:02:43.3]} 14... Na5 {[%clk 0:02:24.7]} 15. b3 {[%clk 0:02:38.6]} 15...
Nac6 {[%clk 0:02:22.5]} 16. Qd2 {[%clk 0:02:29.8]} 16... Qa5 {[%clk 0:02:15.2]}
17. d5 {[%clk 0:02:02.7]} 17... Ne5 {[%clk 0:02:04.2]} 18. dxe6 {[%clk 0:01:42]}
18... Nxf3+ {[%clk 0:02:02.1]} 19. Bxf3 {[%clk 0:01:40.9]} 19... Bxc3 {[%clk
0:01:48.8]} 20. Rxc3 {[%clk 0:01:21.5]} 20... Qxc3 {[%clk 0:01:47.4]} 21. Qxc3
{[%clk 0:01:21.7]} 21... Rxc3 {[%clk 0:01:46.1]} 22. exd7 {[%clk 0:01:22.3]}
22... Nc6 {[%clk 0:01:22.6]} 23. Bb6 {[%clk 0:01:17]} 23... Ne5 {[%clk
0:01:12.7]} 24. Bg2 {[%clk 0:00:15.9]} 24... Nxd7 {[%clk 0:01:10.3]} 25. Ba5
{[%clk 0:00:16.1]} 25... Rc2 {[%clk 0:01:08.4]} 26. Rd1 {[%clk 0:00:16.3]} 26...
Rxa2 {[%clk 0:01:05.4]} 27. Bb4 {[%clk 0:00:13.6]} 27... a5 {[%clk 0:00:49.5]}
28. Bxd6 {[%clk 0:00:12.7]} 28... Rc8 {[%clk 0:00:48.3]} 29. e5 {[%clk
0:00:12.5]} 29... Nf8 {[%clk 0:00:45.2]} 30. Bb7 {[%clk 0:00:11.4]} 30... Rd8
{[%clk 0:00:43]} 31. Bc6 {[%clk 0:00:08.2]} 31... b4 {[%clk 0:00:36.7]} 32. Bd5
{[%clk 0:00:06.2]} 32... Ne6 {[%clk 0:00:35.8]} 33. Bc4 {[%clk 0:00:04.7]} 33...
Rc8 {[%clk 0:00:30.3]} 34. Rd5 {[%clk 0:00:05.2]} 34... Kg7 {[%clk 0:00:25.9]}
35. Rb5 {[%clk 0:00:04.5]} 35... a4 {[%clk 0:00:10.4]} 36. Rxb4 {[%clk
0:00:03.8]} 36... axb3 {[%clk 0:00:09.2]} 37. Bxb3 {[%clk 0:00:02.9]} 37... Rb2
{[%clk 0:00:07.5]} 38. Rb7 {[%clk 0:00:02.4]} 38... Kg8 {[%clk 0:00:04.8]} 39.
Bd5 {[%clk 0:00:02.4]} 39... Rxb7 {[%clk 0:00:03]} 40. Bxb7 {[%clk 0:00:03.3]}
1-0

[Event "Betsys MČR v online bleskovém šachu 2021"]
[Site "Chess.com"]
[Date "2021.04.17"]
[Round "9"]
[White "Figo5144"]
[Black "MaTpAt113"]
[Result "0-1"]
[WhiteElo "572"]
[BlackElo "855"]
[TimeControl "180+1"]
[EndTime "10:31:02 PDT"]
[Termination "Uživatel MaTpAt113 zvítězil na čas"]

1. e4 {[%clk 0:03:00.9]} 1... c6 {[%clk 0:03:00.9]} 2. d4 {[%clk 0:02:58.4]}
2... d5 {[%clk 0:02:57]} 3. e5 {[%clk 0:02:57.8]} 3... Bf5 {[%clk 0:02:55.8]} 4.
g4 {[%clk 0:02:52.8]} 4... Bg6 {[%clk 0:02:47.9]} 5. Nc3 {[%clk 0:02:49.1]} 5...
e6 {[%clk 0:02:43]} 6. Be2 {[%clk 0:02:46.1]} 6... c5 {[%clk 0:02:37]} 7. Be3
{[%clk 0:02:41.2]} 7... c4 {[%clk 0:02:25]} 8. Nf3 {[%clk 0:02:39.5]} 8... Nc6
{[%clk 0:02:07.1]} 9. h3 {[%clk 0:02:39.1]} 9... Be4 {[%clk 0:01:56.6]} 10. O-O
{[%clk 0:02:37.5]} 10... Be7 {[%clk 0:01:47]} 11. a3 {[%clk 0:02:26.3]} 11...
Nh6 {[%clk 0:00:57.3]} 12. Qd2 {[%clk 0:02:15.8]} 12... O-O {[%clk 0:00:55.8]}
13. Bxh6 {[%clk 0:02:11.5]} 13... gxh6 {[%clk 0:00:54.1]} 14. Qxh6 {[%clk
0:02:10.7]} 14... Kh8 {[%clk 0:00:54]} 15. Qe3 {[%clk 0:01:45.3]} 15... Rg8
{[%clk 0:00:47.9]} 16. Nxe4 {[%clk 0:01:37.4]} 16... dxe4 {[%clk 0:00:41.8]} 17.
Qxe4 {[%clk 0:01:37.3]} 17... Bh4 {[%clk 0:00:39]} 18. Nxh4 {[%clk 0:01:26.6]}
18... Qxh4 {[%clk 0:00:36.1]} 19. Qg2 {[%clk 0:01:21.9]} 19... Nxd4 {[%clk
0:00:31]} 20. Bd1 {[%clk 0:01:07.1]} 20... Rad8 {[%clk 0:00:17.4]} 21. c3 {[%clk
0:00:37.9]} 21... Nc6 {[%clk 0:00:12.8]} 22. Bf3 {[%clk 0:00:34.8]} 22... Nxe5
{[%clk 0:00:11.5]} 23. Rae1 {[%clk 0:00:29.3]} 23... Nd3 {[%clk 0:00:10.7]} 24.
Re4 {[%clk 0:00:25.2]} 24... e5 {[%clk 0:00:07.3]} 25. Rxc4 {[%clk 0:00:22.6]}
25... Nf4 {[%clk 0:00:06.2]} 26. Rxf4 {[%clk 0:00:19.9]} 26... exf4 {[%clk
0:00:05.7]} 27. Bxb7 {[%clk 0:00:15.3]} 27... Rb8 {[%clk 0:00:03.5]} 28. Bf3
{[%clk 0:00:14.5]} 28... Rxb2 {[%clk 0:00:02.4]} 29. c4 {[%clk 0:00:13.4]} 29...
Rb3 {[%clk 0:00:01]} 30. c5 {[%clk 0:00:13.5]} 30... Rxa3 {[%clk 0:00:01.2]} 31.
c6 {[%clk 0:00:13.4]} 31... Ra5 {[%clk 0:00:01.8]} 32. c7 {[%clk 0:00:12.1]}
32... Rb5 {[%clk 0:00:02.7]} 33. c8=Q {[%clk 0:00:10.3]} 33... Rc5 {[%clk
0:00:03.6]} 34. Qxg8+ {[%clk 0:00:09.7]} 34... Kxg8 {[%clk 0:00:02.9]} 35. Bb7
{[%clk 0:00:07.4]} 35... Kg7 {[%clk 0:00:03.4]} 36. g5 {[%clk 0:00:05.2]} 36...
Rc3 {[%clk 0:00:03.6]} 37. g6 {[%clk 0:00:04.8]} 37... Rxh3 {[%clk 0:00:03.4]}
38. Qxh3 {[%clk 0:00:02.9]} 38... Qxh3 {[%clk 0:00:03.2]} 39. f3 {[%clk
0:00:01.6]} 39... Qg3+ {[%clk 0:00:02.8]} 40. Kh1 {[%clk 0:00:01]} 40... Qh3+
{[%clk 0:00:03.4]} 41. Kg1 {[%clk 0:00:01.1]} 41... Qg3+ {[%clk 0:00:04]} 0-1

[Event "Betsys MČR v online bleskovém šachu 2021"]
[Site "Chess.com"]
[Date "2021.04.17"]
[Round "9"]
[White "karimaster100"]
[Black "Krvelacny_krecek"]
[Result "1-0"]
[WhiteElo "2269"]
[BlackElo "2374"]
[TimeControl "180+1"]
[EndTime "10:31:04 PDT"]
[Termination "Uživatel karimaster100 zvítězil na čas"]

1. Nf3 {[%clk 0:03:00.9]} 1... d5 {[%clk 0:02:59.5]} 2. g3 {[%clk 0:03:00.3]}
2... Nf6 {[%clk 0:02:58.9]} 3. Bg2 {[%clk 0:03:00.2]} 3... c6 {[%clk 0:02:56.5]}
4. O-O {[%clk 0:02:52.1]} 4... Bf5 {[%clk 0:02:53.5]} 5. d3 {[%clk 0:02:51.8]}
5... e6 {[%clk 0:02:51]} 6. Nbd2 {[%clk 0:02:51]} 6... h6 {[%clk 0:02:51.1]} 7.
c4 {[%clk 0:02:48]} 7... Nbd7 {[%clk 0:02:51.1]} 8. b3 {[%clk 0:02:48.5]} 8...
Bd6 {[%clk 0:02:48.6]} 9. Bb2 {[%clk 0:02:48.5]} 9... Bh7 {[%clk 0:02:48]} 10.
Re1 {[%clk 0:02:41.8]} 10... O-O {[%clk 0:02:46.3]} 11. Qc2 {[%clk 0:02:38]}
11... e5 {[%clk 0:02:38.7]} 12. e4 {[%clk 0:02:36.5]} 12... d4 {[%clk
0:02:34.2]} 13. Rf1 {[%clk 0:02:22.3]} 13... a5 {[%clk 0:02:33.3]} 14. a3 {[%clk
0:02:20.1]} 14... Ne8 {[%clk 0:02:30.7]} 15. Nh4 {[%clk 0:02:06.9]} 15... Nc7
{[%clk 0:02:25.1]} 16. Bh3 {[%clk 0:02:03.9]} 16... Ne6 {[%clk 0:02:19.4]} 17.
Ndf3 {[%clk 0:01:53.4]} 17... Bc7 {[%clk 0:02:13.3]} 18. Nf5 {[%clk 0:01:50]}
18... Bxf5 {[%clk 0:01:52.6]} 19. Bxf5 {[%clk 0:01:44.2]} 19... g6 {[%clk
0:01:48.4]} 20. Bh3 {[%clk 0:01:43.6]} 20... Kg7 {[%clk 0:01:44.1]} 21. b4
{[%clk 0:01:43.2]} 21... Qe7 {[%clk 0:01:40.8]} 22. c5 {[%clk 0:01:37.3]} 22...
f5 {[%clk 0:01:38.4]} 23. exf5 {[%clk 0:01:32.8]} 23... gxf5 {[%clk 0:01:38.1]}
24. Rae1 {[%clk 0:01:30.2]} 24... Qf6 {[%clk 0:01:34.8]} 25. Nh4 {[%clk
0:01:27.3]} 25... Qg5 {[%clk 0:01:23.1]} 26. Kh1 {[%clk 0:01:15.6]} 26... Rf6
{[%clk 0:01:13.9]} 27. f4 {[%clk 0:01:01.8]} 27... exf4 {[%clk 0:01:07.5]} 28.
Rxe6 {[%clk 0:01:00.3]} 28... Rxe6 {[%clk 0:00:58.9]} 29. Nxf5+ {[%clk
0:00:59.9]} 29... Kh8 {[%clk 0:00:56.9]} 30. Nxd4 {[%clk 0:00:57.7]} 30... Re5
{[%clk 0:00:25.8]} 31. Nf3 {[%clk 0:00:56.3]} 31... Qh5 {[%clk 0:00:22.2]} 32.
Bxd7 {[%clk 0:00:55.3]} 32... fxg3 {[%clk 0:00:19.4]} 33. Nxe5 {[%clk
0:00:45.2]} 33... Bxe5 {[%clk 0:00:18.4]} 34. Rf5 {[%clk 0:00:38.7]} 34... g2+
{[%clk 0:00:14.6]} 35. Qxg2 {[%clk 0:00:35.5]} 35... Qd1+ {[%clk 0:00:14.3]} 36.
Rf1 {[%clk 0:00:35.6]} 36... Qh5 {[%clk 0:00:05.5]} 37. Bxe5+ {[%clk 0:00:29.1]}
37... Qxe5 {[%clk 0:00:05.4]} 38. Qe4 {[%clk 0:00:27.1]} 38... Qxe4+ {[%clk
0:00:03.8]} 39. dxe4 {[%clk 0:00:26.9]} 39... axb4 {[%clk 0:00:03.8]} 40. axb4
{[%clk 0:00:26.7]} 40... Rd8 {[%clk 0:00:03.8]} 41. Rf7 {[%clk 0:00:24.6]} 41...
Kg8 {[%clk 0:00:03.3]} 42. Re7 {[%clk 0:00:24.1]} 42... Kf8 {[%clk 0:00:03]} 43.
Rh7 {[%clk 0:00:22.9]} 43... Ra8 {[%clk 0:00:03]} 44. Bf5 {[%clk 0:00:22.7]}
44... Ra1+ {[%clk 0:00:02.7]} 45. Kg2 {[%clk 0:00:22.1]} 45... Ra7 {[%clk
0:00:02.7]} 46. Kg3 {[%clk 0:00:20.7]} 46... Ra3+ {[%clk 0:00:02.2]} 47. Kf4
{[%clk 0:00:20.2]} 47... Ra7 {[%clk 0:00:02.3]} 48. Ke5 {[%clk 0:00:19.8]} 1-0

[Event "Betsys MČR v online bleskovém šachu 2021"]
[Site "Chess.com"]
[Date "2021.04.17"]
[Round "9"]
[White "FrantisekP"]
[Black "milanpetras"]
[Result "0-1"]
[WhiteElo "1635"]
[BlackElo "1847"]
[TimeControl "180+1"]
[EndTime "10:31:04 PDT"]
[Termination "Uživatel milanpetras zvítězil matem"]

1. d4 {[%clk 0:03:00.9]} 1... d5 {[%clk 0:02:55.4]} 2. Bf4 {[%clk 0:03:01.3]}
2... h5 {[%clk 0:02:55.4]} 3. h3 {[%clk 0:03:00.4]} 3... g6 {[%clk 0:02:52.3]}
4. e3 {[%clk 0:02:58.3]} 4... Bg7 {[%clk 0:02:52]} 5. Nf3 {[%clk 0:02:57]} 5...
c5 {[%clk 0:02:44.3]} 6. c3 {[%clk 0:02:52.4]} 6... Qb6 {[%clk 0:02:43.7]} 7.
Qc2 {[%clk 0:02:49.4]} 7... Bf5 {[%clk 0:02:41.9]} 8. Qb3 {[%clk 0:02:41.5]}
8... c4 {[%clk 0:02:32.9]} 9. Qxb6 {[%clk 0:02:29.5]} 9... axb6 {[%clk
0:02:33.8]} 10. Nbd2 {[%clk 0:02:24.5]} 10... b5 {[%clk 0:02:28.3]} 11. Be2
{[%clk 0:02:17.8]} 11... Nf6 {[%clk 0:02:19.1]} 12. Bxb8 {[%clk 0:02:13.3]}
12... Rxb8 {[%clk 0:02:17.4]} 13. O-O {[%clk 0:02:10.7]} 13... Nd7 {[%clk
0:01:59.4]} 14. a3 {[%clk 0:01:52.9]} 14... O-O {[%clk 0:01:58.3]} 15. Nh4
{[%clk 0:01:42.7]} 15... Be6 {[%clk 0:01:52.3]} 16. f4 {[%clk 0:01:38.3]} 16...
Bf6 {[%clk 0:01:41.5]} 17. Nhf3 {[%clk 0:01:35.9]} 17... Nb6 {[%clk 0:01:37.7]}
18. Ne5 {[%clk 0:01:25.4]} 18... Bf5 {[%clk 0:01:31.6]} 19. b4 {[%clk
0:01:11.4]} 19... Na4 {[%clk 0:01:19.8]} 20. Rfc1 {[%clk 0:01:09.1]} 20... Ra8
{[%clk 0:01:10]} 21. Bd1 {[%clk 0:01:08.4]} 21... Rfd8 {[%clk 0:01:01.9]} 22.
Kf2 {[%clk 0:00:54]} 22... Rd6 {[%clk 0:00:53.2]} 23. g4 {[%clk 0:00:37.9]}
23... hxg4 {[%clk 0:00:47.7]} 24. hxg4 {[%clk 0:00:38.8]} 24... Be4 {[%clk
0:00:42.2]} 25. Nxe4 {[%clk 0:00:30.5]} 25... dxe4 {[%clk 0:00:43.1]} 26. g5
{[%clk 0:00:31.1]} 26... Bxe5 {[%clk 0:00:27.2]} 27. fxe5 {[%clk 0:00:29]} 27...
Rda6 {[%clk 0:00:25.3]} 28. Rc2 {[%clk 0:00:20.8]} 28... Nb6 {[%clk 0:00:21.7]}
29. Rca2 {[%clk 0:00:20.2]} 29... Nd5 {[%clk 0:00:20.9]} 30. a4 {[%clk
0:00:06.3]} 30... Nxc3 {[%clk 0:00:15.3]} 31. Ra3 {[%clk 0:00:06.5]} 31... Nxd1+
{[%clk 0:00:14.9]} 32. Rxd1 {[%clk 0:00:07.4]} 32... Rxa4 {[%clk 0:00:14.8]} 33.
Rxa4 {[%clk 0:00:06.6]} 33... Rxa4 {[%clk 0:00:14.7]} 34. Rb1 {[%clk 0:00:07.3]}
34... Ra2+ {[%clk 0:00:14]} 35. Kg3 {[%clk 0:00:07.3]} 35... Kf8 {[%clk
0:00:14.4]} 36. Kf4 {[%clk 0:00:07.6]} 36... Ke8 {[%clk 0:00:14.6]} 37. Kxe4
{[%clk 0:00:08]} 37... Kd7 {[%clk 0:00:14.9]} 38. d5 {[%clk 0:00:07.6]} 38...
Rg2 {[%clk 0:00:12.7]} 39. Kd4 {[%clk 0:00:06.1]} 39... Rxg5 {[%clk 0:00:11.8]}
40. e4 {[%clk 0:00:05.3]} 40... e6 {[%clk 0:00:09.4]} 41. d6 {[%clk 0:00:03.6]}
41... Rg3 {[%clk 0:00:07.5]} 42. Ra1 {[%clk 0:00:02.7]} 42... b6 {[%clk
0:00:06.4]} 43. Rc1 {[%clk 0:00:02.7]} 43... Rd3# {[%clk 0:00:04.5]} 0-1

[Event "Betsys MČR v online bleskovém šachu 2021"]
[Site "Chess.com"]
[Date "2021.04.17"]
[Round "9"]
[White "Jeff_CZE"]
[Black "Michaela1994"]
[Result "0-1"]
[WhiteElo "1833"]
[BlackElo "1652"]
[TimeControl "180+1"]
[EndTime "10:31:06 PDT"]
[Termination "Uživatel Michaela1994 zvítězil na čas"]

1. d4 {[%clk 0:03:00.9]} 1... e6 {[%clk 0:02:59.4]} 2. c4 {[%clk 0:02:58.9]}
2... f5 {[%clk 0:02:58.3]} 3. g3 {[%clk 0:02:57.4]} 3... Nf6 {[%clk 0:02:57.8]}
4. Bg2 {[%clk 0:02:57.5]} 4... c6 {[%clk 0:02:57.6]} 5. Nc3 {[%clk 0:02:57.8]}
5... d5 {[%clk 0:02:57.5]} 6. cxd5 {[%clk 0:02:55.6]} 6... cxd5 {[%clk
0:02:57.5]} 7. Nf3 {[%clk 0:02:55.5]} 7... Nbd7 {[%clk 0:02:56.3]} 8. Ne5 {[%clk
0:02:53]} 8... Be7 {[%clk 0:02:54]} 9. O-O {[%clk 0:02:47.8]} 9... O-O {[%clk
0:02:53.8]} 10. Bd2 {[%clk 0:02:43.8]} 10... Nxe5 {[%clk 0:02:52.8]} 11. dxe5
{[%clk 0:02:43.4]} 11... Ng4 {[%clk 0:02:46.8]} 12. f4 {[%clk 0:02:36.6]} 12...
Bc5+ {[%clk 0:02:46]} 13. e3 {[%clk 0:02:28]} 13... Bxe3+ {[%clk 0:02:44.1]} 14.
Bxe3 {[%clk 0:02:27.1]} 14... Nxe3 {[%clk 0:02:44]} 15. Qb3 {[%clk 0:02:16.3]}
15... Nxf1 {[%clk 0:02:41]} 16. Rxf1 {[%clk 0:02:17]} 16... Qc7 {[%clk
0:02:35.1]} 17. Nb5 {[%clk 0:02:11.2]} 17... Qc5+ {[%clk 0:02:33.3]} 18. Kh1
{[%clk 0:02:10.9]} 18... Bd7 {[%clk 0:02:30.7]} 19. Nd6 {[%clk 0:02:10.3]} 19...
b6 {[%clk 0:02:25.4]} 20. Qf3 {[%clk 0:02:01.2]} 20... Bb5 {[%clk 0:02:16.8]}
21. Re1 {[%clk 0:01:45.1]} 21... Qb4 {[%clk 0:02:05]} 22. Qf2 {[%clk 0:01:23.3]}
22... Bc4 {[%clk 0:01:39.7]} 23. b3 {[%clk 0:01:19.8]} 23... Bb5 {[%clk
0:01:37.9]} 24. Bh3 {[%clk 0:01:04.8]} 24... Rab8 {[%clk 0:01:36.5]} 25. g4
{[%clk 0:01:04.1]} 25... fxg4 {[%clk 0:01:15.7]} 26. Bxg4 {[%clk 0:01:02.9]}
26... Bc6 {[%clk 0:01:00.3]} 27. Bxe6+ {[%clk 0:00:57.9]} 27... Kh8 {[%clk
0:00:59.2]} 28. h4 {[%clk 0:00:51]} 28... Qxf4 {[%clk 0:00:46.1]} 29. Qxf4
{[%clk 0:00:18.5]} 29... Rxf4 {[%clk 0:00:44.8]} 30. Nf7+ {[%clk 0:00:15.1]}
30... Rxf7 {[%clk 0:00:44]} 31. Bxf7 {[%clk 0:00:16]} 31... Rf8 {[%clk
0:00:42.6]} 32. e6 {[%clk 0:00:13.8]} 32... h6 {[%clk 0:00:39]} 33. Kh2 {[%clk
0:00:09.9]} 33... d4 {[%clk 0:00:38.4]} 34. Kg3 {[%clk 0:00:09.3]} 34... Be8
{[%clk 0:00:33.6]} 35. Bxe8 {[%clk 0:00:06.2]} 35... Rxe8 {[%clk 0:00:33.6]} 36.
Kf3 {[%clk 0:00:03.9]} 36... Kg8 {[%clk 0:00:33.4]} 37. Re4 {[%clk 0:00:03.9]}
37... d3 {[%clk 0:00:32.2]} 38. Ke3 {[%clk 0:00:04]} 38... Kf8 {[%clk
0:00:32.1]} 39. Kxd3 {[%clk 0:00:03.9]} 39... Ke7 {[%clk 0:00:32]} 40. Rg4
{[%clk 0:00:02.3]} 40... Rg8 {[%clk 0:00:23.1]} 41. Ra4 {[%clk 0:00:01.8]} 41...
Ra8 {[%clk 0:00:18.8]} 42. Re4 {[%clk 0:00:02.2]} 42... Kd6 {[%clk 0:00:16.2]}
43. Kc4 {[%clk 0:00:02.1]} 43... Re8 {[%clk 0:00:14.6]} 44. Rg4 {[%clk
0:00:01.8]} 44... Re7 {[%clk 0:00:13.9]} 45. Rg6 {[%clk 0:00:01.2]} 45... Rc7+
{[%clk 0:00:10.5]} 0-1